Cogmind - Beta 11 @@@ ROGUE MODE // 2022.03.30 @ 12:16:00 Player: Happytimes Result: Destroyed by as-21820 with Assembled Heavy Rifle Performance ------------- Evolutions (0) 0 Regions Visited (2) 400 Robots Destroyed (0) 0 Value Destroyed (60) 60 Prototype IDs (0) 0 Alien Tech Used (0) 0 Bonus (0) 0 TOTAL SCORE: 460 Bonus ------- None Cogmind --------- Core Integrity 0/250 Matter 275/300 Energy 55/100 System Corruption 0% Temperature Cool (8) Movement Rolling (80) Location -10/Mines Parts ------- > --- POWER (1) -------- (None) > --- PROPULSION (2) --- Wheel Wheel > --- UTILITY (2) ------ Small Storage Unit > --- WEAPON (2) ------- Particle Gun Mining Laser > --- INVENTORY (8) ---- Improved Terrain Scanner Mining Laser Mining Laser Peak State ------------ > --- POWER ------------ Light Ion Engine > --- PROPULSION ------- Wheel Wheel > --- UTILITY ---------- Small Storage Unit Sensor Array > --- WEAPON ----------- EM Pulse Gun Light Assault Rifle > --- INVENTORY -------- Grenade Launcher [Rating: 7] Favorites ----------- Power Light Ion Engine Engine Light Ion Engine Propulsion Wheel Wheel Wheel Utility Small Storage Unit Device Sensor Array Storage Small Storage Unit Weapon Light Assault Rifle Energy Gun EM Pulse Gun Ballistic Gun Light Assault Rifle Launcher Grenade Launcher Special Weapon Mining Laser Build | -11 -10 -10 ------- Run | Scr Mat Min Slots Evolved . | . . . Power . | . . . Propulsion . | . . . Utility . | . . . Weapon . | . . . Parts Attached 14 | 6 1 7 Power 2 | 1 . 1 Engine 2 | 1 . 1 Core . | . . . Reactor . | . . . Propulsion 5 | 2 . 3 Treads . | . . . Leg . | . . . Wheel 5 | 2 . 3 Hover . | . . . Flight . | . . . Utility 2 | 1 1 . Device 1 | . 1 . Storage 1 | 1 . . Processor . | . . . Hackware . | . . . Protection . | . . . Artifact . | . . . Weapon 5 | 2 . 3 Energy Gun 2 | 1 . 1 Energy Cannon . | . . . Ballistic Gun 1 | 1 . . Ballistic Cannon . | . . . Launcher 1 | . . 1 Special Weapon 1 | . . 1 Impact Weapon . | . . . Slashing Weapon . | . . . Piercing Weapon . | . . . Special Melee Weapon . | . . . Unidentified Prototypes . | . . . Parts Lost 7 | . . 7 Power 1 | . . 1 Propulsion 2 | . . 2 Utility 1 | . . 1 Weapon 3 | . . 3 Highest Loss Streak 5 | . . 5 To Critical Strikes . | . . . Average Slot Usage (%) 65 | . 95 62 Engine 7 | . 14 7 Wheel 21 | . 28 20 Device 7 | . 9 7 Storage 14 | . 14 14 Energy Gun 6 | . 14 5 Ballistic Gun 7 | . 14 6 Naked Turns . | . . . Heaviest Build 12 | 11 12 12 Greatest Support 20 | 20 20 20 Greatest Overweight (x) 1 | 1 . 1 Average Overweight (x) . | . . . Largest Inventory Capacity 8 | 8 8 8 Average Capacity 7 | 6 8 8 Most Carried 6 | 5 2 6 Average Carried 2 | 1 . 2 Final Capacity 8 | 8 8 8 Final Carried 3 | . 2 3 Class Distribution -------------------- 100% | Mutant Dominant Class ---------------- Mutant | -10/Materials Mutant | -10/Mines Resources | -11 -10 -10 ----------- Run | Scr Mat Min Matter Collected 309 | 255 . 54 Remotely . | . . . Salvage Created 8 | . . 8 Parts . | . . . Haulers Intercepted . | . . . Recyclers Shooed . | . . . Parts Field Recycled . | . . . Retrieved Matter . | . . . Parts Self-Destructed . | . . . Prevented . | . . . Kills | -11 -10 -10 ------- Run | Scr Mat Min Combat Hostiles Destroyed 4 | . . 4 AOE 4 | . . 4 Classes Destroyed 1 | . . 1 Assembled 4 | . . 4 Best Kill Streak 4 | . . 4 Combat Bots Only 4 | . . 4 Max Kills in Single Turn 4 | . . 4 Gunslinging . | . . . Exploded 4 | . . 4 Melee . | . . . Uniques/NPCs Destroyed . | . . . Combat | -11 -10 -10 -------- Run | Scr Mat Min Damage Taken 712 | 6 3 703 Core 255 | 6 . 249 Absorbed by Shields . | . . . Core Remaining (%) 97 | 97 . . Volleys Fired 6 | . . 6 Largest 2 | . . 2 Hottest 165 | . . 165 Shots Fired 10 | . . 10 Gun 8 | . . 8 Cannon . | . . . Launcher 1 | . . 1 Special 1 | . . 1 Kinetic 3 | . . 3 Thermal 3 | . . 3 Explosive 1 | . . 1 Electromagnetic 3 | . . 3 Robot Hit Streak 2 | . . 2 Robot Miss Streak 1 | . . 1 Penetration Max . | . . . Secondary Targets . | . . . Shots Hit Robots 6 | . . 6 Core Hits 12 | 1 . 11 Critical Kills . | . . . Critical Parts Destroyed . | . . . Critical Strikes . | . . . Melee Attacks . | . . . Impact . | . . . Slashing . | . . . Piercing . | . . . Sneak Attacks . | . . . Combat Hostiles . | . . . Follow-up Attacks . | . . . Damage Inflicted 344 | 13 6 325 Guns 71 | . . 71 Cannons . | . . . Explosions 230 | . . 230 Melee . | . . . Ramming 19 | 13 6 . Kinetic 16 | . . 16 Thermal 194 | . . 194 Explosive 75 | . . 75 Electromagnetic 40 | . . 40 Impact . | . . . Slashing . | . . . Piercing . | . . . Highest Corruption . | . . . Average Corruption . | . . . Corruption Purged . | . . . Corruption Blocked . | . . . Overload Shots . | . . . Overflow Damage 26 | . . 26 Projectiles . | . . . Explosions 26 | . . 26 Melee . | . . . Knockbacks . | . . . Impact . | . . . Kinetic . | . . . Secondary . | . . . Self-Inflicted Damage 95 | 6 3 86 Shots 2 | . . 2 Rammed 2 | 1 1 . Targets Rammed 2 | 1 1 . Kicked . | . . . Crushed . | . . . Highest Temperature 86 | . . 86 Average Temperature 42 | . . 42 Received Heat Transfer 75 | . . 75 Siege Activations . | . . . Robots Corrupted . | . . . Combat Hostiles . | . . . Parts Fried . | . . . Impact Corruptions . | . . . Robots Melted . | . . . Combat Hostiles . | . . . Parts Melted . | . . . Heat Transferred 287 | . . 287 Parts Sabotaged . | . . . Parts Stolen . | . . . Parts Stripped . | . . . Power Chain Reactions . | . . . Missiles Intercepted . | . . . Alert | -11 -10 -10 ------- Run | Scr Mat Min Peak Influence 179 | . 15 179 Initial 5 | . . 5 Average 69 | . . 90 Maximum Alert Level . | . . . Low Security (%) 100 | 100 100 100 Level 1 . | . . . Level 2 . | . . . Level 3 . | . . . Level 4 . | . . . Level 5 . | . . . High Security . | . . . Max Security . | . . . Squads Dispatched . | . . . Investigation . | . . . Extermination . | . . . Reinforcement . | . . . Assault . | . . . Garrison . | . . . Intercept . | . . . Searches Triggered . | . . . Construction Impeded . | . . . Haulers Reinforced . | . . . Active Scanning Responses . | . . . Cargo Convoy Interrupts . | . . . Stealth | -11 -10 -10 --------- Run | Scr Mat Min Distress Signals . | . . . Communications Jammed . | . . . Distress Signals . | . . . Times Spotted 12 | . . 12 Peak Tracking Total 8 | . . 8 Tactical Retreats 2 | . . 2 Traps | -11 -10 -10 ------- Run | Scr Mat Min Traps Triggered . | . . . Indirectly . | . . . Trap Hack Attempts . | . . . Triggered . | . . . Disarmed . | . . . Reprogrammed . | . . . Reused . | . . . Traps Extracted . | . . . Installed . | . . . Triggered . | . . . Machines | -11 -10 -10 ---------- Run | Scr Mat Min Machines Disabled 6 | . . 6 Max in Single Turn 6 | . . 6 Machines Sabotaged . | . . . Garrisons Compromised . | . . . Overloaded Fab Kills . | . . . Hacking | -11 -10 -10 --------- Run | Scr Mat Min Machines Accessed 1 | . 1 . Terminals 1 | . 1 . Fabricators . | . . . Repair Stations . | . . . Recycling Units . | . . . Scanalyzers . | . . . Garrison Access . | . . . Total Hacks 3 | . 3 . Successful 1 | . 1 . Failed 2 | . 2 . Catastrophic . | . . . Database Lockouts . | . . . Manual . | . . . Terminals 3 | . 3 . Fabricators . | . . . Repair Stations . | . . . Recycling Units . | . . . Scanalyzers . | . . . Garrison Access . | . . . Terminal Hacks 1 | . 1 . Branch Access Points 1 | . 1 . Fabricator Hacks . | . . . Repair Station Hacks . | . . . Recycling Unit Hacks . | . . . Scanalyzer . | . . . Garrison Access Hacks . | . . . Unauthorized Hacks . | . . . Terminals . | . . . Fabricators . | . . . Repair Stations . | . . . Recycling Units . | . . . Scanalyzers . | . . . Garrison Access . | . . . Data Cores Recovered . | . . . Used . | . . . Hacking Detections 1 | . 1 . Full Trace Events . | . . . Feedback Events . | . . . Feedback Blocked . | . . . Robot Schematics Acquired . | . . . Robots Built . | . . . Authchips . | . . . Time . | . . . Total Robot Build Rating . | . . . Part Schematics Acquired . | . . . Parts Built . | . . . Authchips . | . . . Time . | . . . Total Part Build Rating . | . . . Parts Repaired . | . . . Time . | . . . Parts Recycled . | . . . Recycled Matter . | . . . Retrieved Matter . | . . . Retrieved Components . | . . . Parts Scanalyzed . | . . . Part Schematics Acquired . | . . . Parts Damaged . | . . . Bothacking | -11 -10 -10 ------------ Run | Scr Mat Min Used RIF Installer . | . . . Robots Hacked . | . . . Non-combat . | . . . Combat . | . . . Robot Hacks Applied . | . . . Relay Couplers Released . | . . . Fabnet Peak Effective % . | . . . Robots Rewired . | . . . Allies Hacked . | . . . Hacks Repelled . | . . . Allies | -11 -10 -10 -------- Run | Scr Mat Min Total Allies . | . . . Largest Group . | . . . Highest-Rated Group . | . . . Highest-Rated Ally . | . . . Total Orders . | . . . Ally Attacks . | . . . Total Damage . | . . . Kills . | . . . Allies Corrupted . | . . . Allies Melted . | . . . Intel | -11 -10 -10 ------- Run | Scr Mat Min Robot Analysis Total . | . . . Derelict Logs Recovered 1 | . . 1 Drone Launches . | . . . Drone Recoveries . | . . . Exploration | -11 -10 -10 ------------- Run | Scr Mat Min Turns Passed 330 | 40 35 255 Spaces Moved 350 | 43 38 269 Core 54 | 26 . 28 Treads . | . . . Legs . | . . . Wheels 296 | 17 38 241 Hover . | . . . Flight . | . . . Fastest Speed 50 | 50 80 80 Average Speed 80 | 64 80 82 Slowest Speed 100 | 100 80 100 Overloaded Moves . | . . . Propulsion Burnouts . | . . . Robots Hopped . | . . . Cave-ins Triggered . | . . . Exploration Rate (%) 23 | 3 15 51 Regions Visited 2 Branch Regions 1 Pre-discovered Areas . | . . . Known Exits Taken 1 | . 1 . Unknown Exits Taken 1 | 1 . . Scrap Searched . | . . . Spaces Dug . | . . . Terrain Destroyed 40 | . . 40 Melee . | . . . Projectile . | . . . AOE 40 | . . 40 Terrain Rammed . | . . . Walls Destroyed . | . . . Machines Disabled . | . . . Actions | -11 -10 -10 --------- Run | Scr Mat Min Total 390 | 54 42 294 Wait 4 | . . 4 Move 349 | 42 38 269 Hop . | . . . Pick Up 16 | 5 3 8 Fast Attach 1 | 1 . . Attach 13 | 5 1 7 Detach . | . . . Swap . | . . . Drop . | . . . Fire 6 | . . 6 Melee . | . . . Ram 1 | 1 . . Kick . | . . . Crush . | . . . Escape Stasis . | . . . Rewire . | . . . Trap . | . . . Miscellaneous . | . . . Route ------- -11/Scrapyard -10/Materials -10/Mines History --------- Turn | Location | Event 13 | -11/Scrapyard | Discovered new exit (range 15) 41 | -11/Scrapyard | Entered Materials 61 | -10/Materials | Discovered new exit (range 11) 62 | -10/Materials | Identified exit to Mines 76 | -10/Materials | Entered Mines 77 | -10/Mines | Assembled infested the area 82 | -10/Mines | Assisted by a Guerilla fighting off Assembled 87 | -10/Mines | Learned 2 Materials zone layouts 157 | -10/Mines | Core integrity fell below 50% 209 | -10/Mines | Core integrity fell below 20% 239 | -10/Mines | Lost 5 parts (1n1u3w) 315 | -10/Mines | Build established: Mutant 331 | -10/Mines | Destroyed by as-21820 with Assembled Heavy Rifle Last Messages --------------- 00208_ Destroyed Grenade Launcher. 00208_ as-36586 destroyed. 00208_ as-80070 destroyed. 00208_ Plasma Injector explodes. 00208_ as-25707 destroyed. 00208_ Plasma Injector explodes. 00212_ Acquired 1 matter. 00222_ Acquired Wheel. 00228_ Extracted 14 matter. 00230_ Extracted 10 matter. 00231_ Extracted 7 matter. 00254_ Extracted 3 matter. 00269_ Acquired Lgt. Ion Engine. 00279_ Acquired Mining Laser. 00280_ Acquired 10 matter. 00281_ Acquired Imp. Terrain Scanner. 00302_ Acquired Mining Laser. 00304_ Wheel destroyed. 00315_ Acquired Wheel. 00329_ Lgt. Ion Engine destroyed. Map ----- +----------------------------------------------------+ | | | | | | | | | | | | | | | | | | | | | | | ?????????????????????????????????????????????????? | | ???????????????????????##????????????????????????? | | ???????????????????????# ##??????????????????????? | | ???????????????????????? ##???????#####?????????? | | ???????????????????????? ##?????## ####??????? | | ???????????????????????? #?????# ###????? | | ????????????????????????# #?????# ##???? | | ???????????????????????## #???????# #???? | | ??????????????????????## #??????## #???? | | ??????????????????????# #?????## ##???? | | ??????????????????????# % #????## ##????? | | ??????????????????????# #????# ##?????? | | ?????????????????????## ##????# ##??????? | | ????????????????????## #?????# # ##???????? | | ????????????????????# @##???## ## #????????? | | ????????????????????# a ##?## ### %#########? | | ???????????????????## #?# ##?# # ## ## | | ??????????????????## ### #?## # | | ?????????????????## ## #?# """ # | | ?????????????????# #?# """ ## | | ?????????????# ### #?## """ ##? | | ????????????# #??## ##?#### ##?? | | ????????????### ###????## ##???##### #??? | | ????????????? $???????## % #???????# #??? | | ??????????? ???????## !## #??????# #??? | | ??????????#####???????## #### #????### #??? | | ??????????????#####???# ##??#### ##???## #??? | | ?????????????## ##??# #???????###????# ##?? | | ?????????????# #### ##?????????????# ##? | | ?????????????# ## ##????????????# #? | | ????????????## ## #???????????## """ #? | | ???????????## #?# #??????????## """ #? | | ??????????## ### #?????????## """ #? | | ?????????## ## ## ##?????????# %## | | ?????????# #### %! #??????????## ! | | ?????????# ##??# !! #???????????#### #### | | ?????????## ##??# * = ##??????????????#####??? | | ?????????### ### ####??????????????????????? | | ???#######"" ##?????????????????????????? | +----------------------------------------------------+ Best States ------------- Heat Dissipation 25 Energy Generation 10 Energy Capacity 125 Matter Stores 300 Matter Capacity 300 Sight Range 16 Robot Scan Range 14 Terrain Scan Density 10 Evasion (%) 50 Item Schematics ----------------- None Robot Schematics ------------------ None Fabricated ------------ Nothing Alien Tech Used ----------------- None Achievements -------------- None Challenges ------------ None Game ------ Seed DisruptionLargeActivator Manual? 0 Play Time 00:04:51 Cumulative 45.1 hours Start 2022.03.30 @ 12:13:10 End 2022.03.30 @ 12:16:00 Sessions 1 Manual Loads 0 Difficulty Rogue Special Mode None Game No. 134 Rogue 134 Adventurer 0 Explorer 0 Win Type - Total 0 Types 0/0/0/0/0/0/0/0/0 Lore% 32 Gallery% 46 Achievement% 37 Wizard Run 0 Options --------- ASCII 0 Keyboard 0 Movement Mouse Keybinds 0 Fullscreen 1 Font 18/SmallcapsGlow Map View 76x50 Tactical HUD 1 Map Filters NONE Filters NONE Steam 1 RUN: f4462774-5e5b-4086-9a4b-c61435128988